bitfinex-derivatives/quotes_ETHF0:USTF0_20240917
["timestamp","ask_amount","ask_price","bid_price","bid_amount"]
[1726546606978,0.82287,2286.3,2286.2,0.43738]
[1726546606979,0.3855,2286.3,2286.2,0.43738]
[1726546608478,0.8074,2286.5,2286.2,4.3736]
[1726546608674,0.8074,2286.5,2286.4,0.43734]
[1726546608675,2.0674,2286.5,2286.4,0.43734]
[1726546611384,1.26,2286.5,2286.4,0.43734]
[1726546611777,0.3874,2286.6,2286.5,0.43732]
[1726546612578,0.3874,2286.6,2286.5,0.82222]
[1726546615374,1.6706,2286.7,2286.6,0.4373]
[1726546615683,2.0828,2286.7,2286.6,0.4373]
[1726546624177,0.8228,2286.7,2286.6,0.4373]
[1726546624482,1.362,2287.0,2286.9,0.43725]
[1726546624687,1.1836,2287.0,2286.9,0.43725]
[1726546624890,2.88084,2287.0,2286.8,0.43726]
[1726546625090,1.26,2286.9,2286.7,0.43727]
[1726546625290,1.26,2286.9,2286.8,0.43727]
[1726546629388,0.204,2287.3,2286.7,1.09319]
[1726546629583,1.6566,2287.2,2287.0,0.43722]
[1726546629786,1.26,2287.1,2287.0,0.43722]
[1726546629985,1.69721,2287.1,2287.0,0.43722]
[1726546632591,1.69721,2287.1,2286.6,4.68404]
[1726546632800,1.26,2286.9,2286.8,0.43727]
[1726546638097,1.6448,2286.9,2286.8,0.43727]
[1726546638495,6.0176,2286.9,2286.3,4.30121]
[1726546638692,1.23107,2286.8,2286.6,0.43729]
[1726546641803,1.26,2286.7,2286.6,0.43729]
[1726546642401,1.26,2286.7,2286.3,3.2078]
[1726546642604,1.26,2286.5,2286.4,0.43733]
[1726546643394,0.3927,2286.6,2286.3,3.2078]
[1726546643395,1.6527,2286.6,2286.5,0.43732]
[1726546643595,1.6527,2286.6,2286.4,0.43733]
[1726546643796,2.09001,2286.6,2286.4,0.43734]
[1726546643998,1.6527,2286.6,2286.5,0.43732]
[1726546650808,2.09,2286.6,2286.4,0.43733]
[1726546651003,2.0376,2286.5,2286.4,0.43733]
[1726546655412,2.0376,2286.5,2286.2,0.8427]
[1726546655413,0.43736,2286.4,2286.2,0.43737]
[1726546655623,1.26,2286.3,2286.2,0.43737]
[1726546655817,1.6554,2286.3,2286.2,0.43737]
[1726546659529,1.6554,2286.3,2286.0,4.013]
[1726546659717,1.69741,2286.1,2285.9,0.43743]
[1726546660216,0.3965,2286.0,2285.9,0.43743]
[1726546660415,0.83392,2286.0,2285.8,0.43745]
[1726546660723,1.26,2285.9,2285.8,0.43745]
[1726546661519,1.6565,2286.0,2285.9,0.43744]
[1726546684241,0.3965,2286.0,2285.9,0.43744]
[1726546684453,2.0719,2286.2,2285.8,1.09365]
[1726546684746,0.4151,2286.3,2286.0,4.30133]
[1726546685049,0.3953,2286.4,2286.3,0.43736]
[1726546685236,0.3843,2286.4,2286.3,0.43736]
[1726546685438,0.3843,2286.4,2286.3,3.64516]
[1726546685945,0.4155,2286.5,2286.4,0.43734]
[1726546686148,7.16224,2287.0,2286.6,0.4373]
[1726546686149,1.26,2286.8,2286.6,0.4373]
[1726546686337,1.26,2286.7,2286.6,0.4373]
[1726546704351,1.1951,2286.8,2286.7,0.43728]
[1726546704664,2.4551,2286.8,2286.7,0.43728]
[1726546707355,2.89238,2286.8,2286.6,0.43729]
[1726546707556,1.69728,2286.7,2286.6,0.43729]
[1726546707752,1.26,2286.7,2286.6,0.43729]
[1726546711559,1.1951,2286.8,2286.7,0.43728]
[1726546711859,2.4551,2286.8,2286.7,0.43728]
[1726546712355,2.89237,2286.8,2286.7,0.43728]
[1726546713953,2.4551,2286.8,2286.7,0.43728]
[1726546718462,2.89237,2286.8,2286.7,0.43728]
[1726546718669,2.4551,2286.8,2286.7,0.43728]
[1726546719459,2.89237,2286.8,2286.7,0.43728]
[1726546720667,2.4551,2286.8,2286.7,0.43728]
[1726546722567,2.89237,2286.8,2286.7,0.43728]
[1726546723869,2.4551,2286.8,2286.7,0.43728]
[1726546731570,2.89237,2286.8,2286.7,0.43728]
[1726546732174,2.4551,2286.8,2286.7,0.43728]
[1726546733565,2.89237,2286.8,2286.7,0.43728]
[1726546733968,2.4551,2286.8,2286.7,0.43728]
[1726546744581,0.3843,2286.8,2286.7,0.43728]
[1726546744778,0.3978,2287.0,2286.9,0.43723]
[1726546745677,0.7956,2287.1,2287.0,0.43723]
[1726546745873,2.0556,2287.1,2287.0,0.43723]
[1726546754183,0.3966,2287.2,2287.1,0.43721]
[1726546754382,1.6566,2287.2,2287.1,0.43721]
[1726546759093,0.43721,2287.1,2286.8,3.5947]
[1726546759288,0.83961,2287.1,2287.0,0.43723]
[1726546760488,0.43723,2287.0,2286.9,0.43723]
[1726546760695,0.43723,2287.0,2286.5,4.69429]
[1726546760696,1.26,2287.0,2286.5,3.2078]
[1726546760992,0.43727,2286.8,2286.7,0.43728]
[1726546761295,0.43728,2286.8,2286.6,0.4373]
[1726546761479,0.4016,2286.7,2286.6,0.4373]
[1726546761885,1.6616,2286.7,2286.6,0.4373]
[1726546770006,2.0478,2286.7,2286.6,0.4373]
[1726546770810,2.4851,2286.7,2286.5,0.43731]
[1726546771102,1.6418,2286.6,2286.5,0.43731]
[1726546771899,0.3818,2286.6,2286.5,0.43731]
[1726546783304,0.3818,2286.6,2286.3,0.3992]
[1726546783511,1.26,2286.5,2286.4,0.43734]
[1726546783710,0.43737,2286.3,2286.1,3.2078]
[1726546783912,2.0675,2286.2,2286.1,3.6452]
[1726546784106,2.0675,2286.2,2286.1,3.2078]
[1726546784313,2.0675,2286.2,2286.1,3.6452]
[1726546787606,2.0675,2286.2,2286.1,3.2078]
[1726546788115,2.50488,2286.2,2286.0,0.43741]
[1726546788316,0.4199,2286.1,2285.9,0.85712]
[1726546788513,1.26,2286.0,2285.9,0.85712]
[1726546788710,0.4199,2286.1,2285.9,0.4197]
[1726546788911,0.4199,2286.1,2286.0,0.43742]
[1726546790117,2.0675,2286.2,2286.1,0.4374]
[1726546790823,0.8075,2286.2,2286.1,0.4374]
[1726546791119,2.0675,2286.2,2286.1,0.4374]
[1726546791720,0.8075,2286.2,2286.1,0.4374]
[1726546791908,1.26,2286.4,2286.2,0.43737]
[1726546792112,0.83183,2286.5,2286.3,0.3877]
[1726546792313,1.26,2286.4,2286.3,0.3877]
[1726546792514,1.26,2286.4,2286.2,1.25277]
[1726546792917,1.26,2286.4,2286.3,0.43736]
[1726546794116,1.6545,2286.5,2286.4,0.43734]
[1726546798425,2.09182,2286.5,2286.2,0.8154]
[1726546798616,1.26,2286.4,2286.3,0.43736]
[1726546799524,1.26,2286.4,2286.1,0.3877]
[1726546799722,0.3975,2286.3,2286.2,0.43738]
[1726546800323,1.6575,2286.3,2286.2,0.43738]
[1726546800524,0.3975,2286.3,2286.2,0.43738]
[1726546800727,1.6545,2286.5,2286.4,0.43734]
[1726546800927,1.26,2286.5,2286.4,0.43734]
[1726546801326,1.6575,2286.5,2286.1,0.3939]
[1726546801519,1.26,2286.3,2286.1,0.3939]
[1726546802220,1.26,2286.3,2286.2,0.43738]
[1726546804021,0.43739,2286.2,2286.0,0.43741]
[1726546804224,1.26,2286.1,2286.0,0.43741]
[1726546804416,1.69736,2286.4,2286.0,3.2078]
[1726546804621,2.90586,2286.4,2286.2,0.43737]
[1726546804816,2.90586,2286.4,2286.1,1.24279]
[1726546804817,0.43736,2286.3,2286.1,1.24279]
[1726546805223,0.43737,2286.3,2286.1,1.24279]
[1726546805626,0.43738,2286.2,2286.1,0.8054]
[1726546805923,1.69738,2286.2,2286.0,0.43741]
[1726546806220,1.2076,2286.1,2286.0,0.43741]
[1726546806826,4.50504,2286.7,2286.0,3.2078]
[1726546807021,1.69734,2286.4,2286.2,0.43736]
[1726546807625,0.4234,2286.3,2286.2,0.43736]
[1726546807826,2.0523,2286.5,2286.4,0.43734]
[1726546808130,2.48962,2286.5,2286.3,0.43735]
[1726546809733,1.26,2286.4,2286.3,0.43735]
[1726546809936,1.09341,2286.3,2285.7,1.14462285]
[1726546810125,1.26,2286.0,2285.7,0.3817]
[1726546810326,1.26,2286.0,2285.9,0.43742]
[1726546811031,1.26,2286.1,2286.0,0.4374]
[1726546811432,2.49718,2286.2,2286.0,0.4374]
[1726546813024,2.0598,2286.2,2286.1,0.4374]
[1726546813226,2.0598,2286.2,2286.0,0.4374]
[1726546813227,2.49718,2286.2,2286.0,0.4374]
[1726546816034,1.26,2286.1,2286.0,0.4374]
[1726546817338,1.69741,2286.1,2285.7,0.3817]
[1726546817652,1.26,2285.9,2285.8,0.43745]
[1726546818142,1.69744,2285.9,2285.7,0.43746]
[1726546818332,1.27567,2285.8,2285.6,3.64529]
[1726546818530,1.26,2285.7,2285.6,3.64529]
[1726546820436,1.26,2285.7,2285.3,0.8024]
[1726546820437,1.26,2285.7,2285.4,0.43752]
[1726546820644,1.26,2285.5,2285.3,3.2078]
[1726546820939,0.8382,2285.4,2285.3,3.64534]
[1726546821338,0.8382,2285.4,2285.3,8.02134]
[1726546826942,4.50543,2285.9,2285.3,8.02134]
[1726546826943,3.4118,2285.9,2285.8,0.43746]
[1726546827141,3.95463,2286.0,2285.8,0.43746]
[1726546827334,5.21463,2286.0,2285.8,0.43746]
[1726546827746,4.7772,2286.0,2285.8,0.43746]
[1726546828143,0.3866,2285.9,2285.8,0.43746]
[1726546835848,0.3866,2285.9,2285.6,3.622]
[1726546836239,0.3866,2285.9,2285.7,0.43748]
[1726546836438,0.82404,2285.9,2285.7,0.43748]
[1726546836849,0.3866,2285.9,2285.8,0.43746]
[1726546837250,0.3866,2285.9,2285.6,0.43748]
[1726546837251,0.43746,2285.8,2285.6,0.43748]
[1726546837455,1.654,2285.7,2285.6,0.43748]
[1726546838846,2.09148,2285.7,2285.6,0.43748]
[1726546840444,1.654,2285.7,2285.6,0.43748]
[1726546857375,2.09148,2285.7,2285.4,3.2078]
[1726546857685,1.654,2285.7,2285.6,0.43749]
[1726546861185,1.654,2285.7,2285.6,0.82389]
[1726546862984,0.394,2285.7,2285.6,0.82389]
[1726546863290,1.26,2285.7,2285.6,5.19909]
[1726546863674,3.6271,2286.0,2285.6,4.7616]
[1726546863878,3.6271,2286.0,2285.9,0.43744]
[1726546864083,1.6793,2286.0,2285.9,0.43744]
[1726546864587,1.26,2286.1,2286.0,0.43742]
[1726546868180,1.6529,2286.1,2286.0,0.43742]
[1726546868985,0.3896,2286.2,2286.1,0.4374]
[1726546869390,2.0722,2286.3,2286.2,0.43738]
[1726546875199,2.0722,2286.3,2286.1,0.43738]
[1726546875200,0.43738,2286.2,2286.1,0.43738]
[1726546875394,0.43738,2286.2,2285.9,0.3891]
[1726546875400,1.26,2286.2,2285.7,3.2078]
[1726546875600,1.90563,2286.3,2285.7,3.64528]
[1726546875601,1.26,2285.8,2285.7,3.64528]
[1726546875795,1.26,2285.9,2285.8,0.43746]
[1726546883795,1.26,2285.9,2285.8,1.23216]
[1726546884397,1.26,2285.9,2285.8,0.84486]
[1726546884597,1.26,2285.9,2285.8,0.43746]
[1726546903307,1.26,2285.9,2285.7,0.43746]
[1726546903614,1.69746,2285.8,2285.6,0.43749]
[1726546903919,0.7822,2285.7,2285.6,0.43749]
[1726546904113,1.1869,2285.7,2285.6,0.43749]
[1726546904818,1.26,2285.9,2285.8,0.43746]
[1726546905017,1.1869,2285.9,2285.8,0.43746]
[1726546909721,2.88434,2285.9,2285.6,3.2078]
[1726546909929,1.26,2285.7,2285.6,0.43749]
[1726546915934,1.69748,2285.7,2285.5,0.4375]
[1726546916132,2.4651,2285.6,2285.5,0.43751]
[1726546916421,2.90259,2285.6,2285.5,0.43751]
[1726546917426,2.4651,2285.6,2285.5,0.43751]
[1726546917620,2.90259,2285.6,2285.5,0.43751]
[1726546918431,2.90259,2285.6,2285.4,0.43752]
[1726546918724,2.90259,2285.6,2285.4,0.43753]
[1726546918725,1.26,2285.5,2285.4,0.43753]
[1726546926831,1.69751,2285.5,2285.4,0.43753]
[1726546930232,1.26,2285.5,2285.4,0.43753]
[1726546931526,1.69751,2285.5,2285.4,0.43753]
[1726546949436,0.43748,2285.7,2285.6,0.43748]
[1726546949647,2.49799,2285.7,2285.6,0.43749]
[1726546949940,2.49799,2285.7,2285.4,0.4076]
[1726546950244,1.23799,2285.7,2285.6,0.43749]
[1726546950645,1.23799,2285.7,2285.5,0.4375]
[1726546950846,0.8005,2285.7,2285.6,0.43749]
[1726546951446,0.43752,2285.5,2285.4,0.43753]
[1726546951636,1.69752,2285.5,2285.4,0.43753]
[1726546954751,1.26,2285.5,2285.4,0.43753]
[1726546954944,1.69751,2285.5,2285.4,0.43753]
[1726546958052,1.26,2285.5,2285.4,0.43753]
[1726546958448,1.69751,2285.5,2285.4,0.43753]
[1726546958649,1.69751,2285.5,2285.4,0.82373]
[1726546961160,1.23799,2285.7,2285.5,0.4375]
[1726546961456,1.26,2285.6,2285.5,0.4375]
[1726546962861,1.69749,2285.6,2285.5,0.4375]
[1726546964358,1.69749,2285.6,2285.1,4.35242285]
[1726546964359,0.43751,2285.5,2285.1,4.35242285]
[1726546964658,0.7695,2285.4,2285.2,0.3922]
[1726546965051,0.7695,2285.4,2285.2,4.7682]
[1726546965258,0.7695,2285.4,2285.3,0.43755]
[1726546973268,0.4093,2285.5,2285.4,0.43753]
[1726546973466,0.4093,2285.5,2285.4,3.64533]
[1726546973666,0.4093,2285.5,2285.4,0.83633]
[1726546975561,0.7821,2285.8,2285.4,0.3988]
[1726546975762,1.26,2285.7,2285.6,0.43749]
[1726546982682,2.88886,2285.8,2285.7,0.43748]
[1726546982978,2.4514,2285.8,2285.7,0.43748]
[1726546983365,1.1914,2285.8,2285.5,0.794]
[1726546983567,1.26,2286.0,2285.9,0.43744]
[1726546983765,1.6618,2286.0,2285.9,0.43744]
[1726546984578,2.09922,2286.0,2285.8,0.83125]
[1726546984880,0.43745,2285.9,2285.7,3.64527]
[1726546985076,2.0446,2285.8,2285.6,0.43748]
[1726546985381,1.26,2285.7,2285.6,0.43748]
[1726546985678,1.6618,2285.7,2285.6,0.43748]
[1726546987071,1.6618,2285.7,2285.6,3.64528]
[1726546987976,1.6618,2285.7,2285.6,0.43748]
[1726547000789,0.4018,2285.7,2285.6,0.43748]
[1726547013895,0.4018,2285.7,2285.6,0.83358]
[1726547018399,0.4018,2285.7,2285.6,1.21788]
[1726547019901,0.4028,2285.9,2285.8,0.43746]
[1726547028698,0.8436,2286.1,2285.8,4.3744]
[1726547028897,0.8436,2286.1,2286.0,3.64522]
[1726547029403,0.3829,2286.2,2286.1,0.4374]
[1726547030006,1.26,2286.3,2286.2,0.43738]
[1726547031306,1.26,2286.3,2286.1,0.43739]
[1726547031900,0.4209,2286.2,2286.1,0.43739]
[1726547032304,0.4209,2286.2,2286.1,4.81179]
[1726547034407,0.8269,2286.2,2286.1,4.81179]
[1726547038100,0.8269,2286.2,2286.1,0.43739]
[1726547044321,0.8269,2286.2,2286.0,0.43741]
[1726547044521,1.6593,2286.1,2286.0,0.43741]
[1726547044823,1.6593,2286.1,2285.6,0.8018]
[1726547045124,1.6593,2286.1,2285.8,0.43744]
[1726547045125,1.26,2285.9,2285.8,0.43744]
[1726547045520,2.0705,2285.9,2285.8,0.43744]
[1726547046116,0.8105,2285.9,2285.8,0.43744]
[1726547048028,0.8105,2285.9,2285.8,3.64524]
[1726547048224,0.8075,2286.1,2286.0,0.43742]
[1726547051834,0.8075,2286.1,2285.9,0.82182]
[1726547053626,0.8075,2286.1,2286.0,0.43742]
[1726547060227,0.8075,2286.1,2285.9,0.43743]
[1726547060428,0.8075,2286.1,2286.0,0.43742]
[1726547076635,0.3963,2286.2,2286.0,0.43742]
[1726547076947,0.3963,2286.2,2286.1,0.4374]
[1726547077842,0.8097,2286.3,2286.2,0.43738]
[1726547078748,0.3904,2286.5,2286.4,0.43734]
[1726547078957,0.3904,2286.5,2286.4,4.90514]
[1726547079143,0.3957,2286.7,2286.6,0.4373]
[1726547079955,0.3957,2286.7,2286.6,0.8541]
[1726547080948,0.3957,2286.7,2286.6,0.4168]
[1726547081145,0.3957,2286.7,2286.5,0.43731]
[1726547081345,1.2034,2286.7,2286.5,0.43731]
[1726547084557,1.2034,2286.7,2286.4,3.6053]
[1726547084755,1.2034,2286.7,2286.5,0.43731]
[1726547087253,1.2034,2286.7,2286.6,0.4373]
[1726547089856,3.7212,2287.1,2286.9,0.43723]
[1726547090152,0.4013,2287.0,2286.9,0.43723]
[1726547110364,1.6613,2287.0,2286.8,0.43726]
[1726547110665,1.6613,2287.0,2286.5,3.2078]
[1726547110666,2.073,2286.9,2286.5,3.2078]
[1726547110865,2.073,2286.9,2286.7,0.43727]
[1726547111376,2.073,2286.9,2286.8,0.43727]
[1726547111563,0.813,2286.9,2286.8,0.43727]
[1726547113070,0.813,2286.9,2286.7,0.43727]
[1726547113778,0.813,2286.9,2286.8,0.43727]
[1726547118872,1.25026,2286.9,2286.7,0.43728]
[1726547119377,0.813,2286.9,2286.7,0.43727]
[1726547119571,0.813,2286.9,2286.5,4.4678]
[1726547119881,0.813,2286.9,2286.8,0.43727]
[1726547120084,0.102,2287.3,2286.8,4.4678]
[1726547120380,1.63231,2287.1,2286.9,0.43724]
[1726547123079,2.4551,2287.1,2286.9,0.43724]
[1726547124570,1.1951,2287.1,2287.0,0.43723]
[1726547124777,0.4042,2287.3,2287.1,0.4372]
[1726547124979,0.4042,2287.3,2286.9,2.0907]
[1726547125184,0.4042,2287.3,2287.1,0.43719]
[1726547126491,0.4042,2287.3,2287.1,0.4372]
[1726547129293,0.204,2287.6,2287.2,8.8398]
[1726547129583,0.4201,2287.7,2287.5,3.2078]
[1726547129790,0.4201,2287.7,2287.4,1.26]
[1726547130090,0.4201,2287.7,2287.5,0.4128]
[1726547130284,1.26,2288.1,2287.6,3.2078]
[1726547130478,0.7884,2287.8,2287.6,3.2078]
[1726547130674,0.7884,2287.8,2287.6,0.43711]
[1726547130885,0.7884,2287.8,2287.5,2.10992]
[1726547131278,0.7884,2287.8,2287.6,0.43711]
[1726547131479,0.7884,2287.8,2287.6,3.64491]
[1726547133190,0.7884,2287.8,2287.6,3.2078]
[1726547133888,0.7884,2287.8,2287.6,3.64491]
[1726547134087,0.102,2288.2,2287.7,1.26]
[1726547134288,1.26,2288.0,2287.7,0.7969]
[1726547134487,1.26,2288.0,2287.6,3.2078]
[1726547134488,0.408,2287.9,2287.6,0.43711]
[1726547134694,0.4225,2287.8,2287.6,0.4371]
[1726547134990,1.6825,2287.8,2287.5,0.4128]
[1726547135188,1.6825,2287.8,2287.4,1.26255]
[1726547135889,1.6825,2287.8,2287.5,0.43713]
[1726547137280,1.6825,2287.8,2287.4,0.8254]
[1726547137484,1.6825,2287.8,2287.5,0.43712]
[1726547138987,0.4225,2287.8,2287.4,0.8254]
[1726547139188,2.0809,2287.9,2287.5,1.26]
[1726547139495,0.8209,2287.9,2287.7,0.43709]
[1726547141287,2.0809,2287.9,2287.6,0.4371]
[1726547141596,2.0809,2287.9,2286.9,4.4678]
[1726547141597,0.43713,2287.6,2286.9,4.4678]
[1726547141790,1.26,2287.4,2287.2,0.43717]
[1726547141990,4.90495,2287.4,2286.9,3.2078]
[1726547142190,1.26,2287.2,2287.1,0.43721]
[1726547142793,1.26,2287.2,2286.9,3.2078]
[1726547142993,0.7927,2287.1,2286.9,3.2078]
[1726547143198,0.7927,2287.1,2287.0,0.43723]
[1726547145899,0.7927,2287.1,2286.9,3.2078]
[1726547146096,0.7927,2287.1,2286.9,3.64504]
[1726547146296,0.7927,2287.1,2286.5,0.3819]
[1726547146297,2.73,2287.0,2286.8,0.43726]
[1726547146606,3.1239,2287.0,2286.8,0.43726]
[1726547147099,3.1239,2287.0,2286.9,0.43725]
[1726547147603,0.3939,2287.0,2286.9,0.43725]
[1726547164537,0.7927,2287.1,2287.0,0.43723]
[1726547164731,2.832,2287.4,2287.2,0.43718]
[1726547164732,0.102,2287.4,2287.2,0.43718]
[1726547164932,0.82305,2287.5,2287.3,0.83977]
[1726547165129,0.82305,2287.5,2287.3,0.4026]
[1726547166041,1.26,2287.4,2287.3,0.4026]
[1726547166932,0.3859,2287.5,2287.3,0.4026]
[1726547167236,0.3859,2287.5,2287.3,0.83976]
[1726547167436,1.6459,2287.5,2287.4,0.43715]
[1726547169740,1.6459,2287.5,2287.3,0.4026]
[1726547170037,1.6459,2287.5,2287.3,0.83976]
[1726547170538,1.6459,2287.5,2287.4,0.43715]
[1726547171145,0.3859,2287.5,2287.4,0.43715]
[1726547171332,1.26,2287.7,2287.5,0.43713]
[1726547171535,0.3885,2287.6,2287.5,0.43713]
[1726547171738,1.26,2287.7,2287.5,0.43713]
[1726547177949,1.69709,2287.7,2287.5,0.43713]
[1726547179047,1.69709,2287.7,2287.4,0.43714]
[1726547179251,1.26,2287.5,2287.4,0.43714]
[1726547181047,1.69709,2287.7,2287.5,0.43713]
[1726547188357,0.4015,2287.6,2287.5,0.43713]
[1726547191757,0.83861,2287.6,2287.4,0.43714]
[1726547192061,1.6705,2287.5,2287.2,0.43718]
[1726547192254,1.6538,2287.4,2287.3,0.43717]
[1726547193052,0.3938,2287.4,2287.3,0.43717]
[1726547193251,0.4105,2287.5,2287.1,0.423]
[1726547193252,0.4105,2287.5,2287.4,0.43715]
[1726547193462,0.4015,2287.6,2287.5,0.43713]
[1726547193758,1.208,2287.6,2287.5,0.43713]
[1726547195664,1.208,2287.6,2287.4,0.43714]
[1726547196654,1.208,2287.6,2287.5,0.43713]
[1726547200465,1.208,2287.6,2287.5,0.83643]
[1726547202159,1.26,2287.8,2287.6,0.43711]
[1726547202361,1.6549,2287.8,2287.6,0.43711]
[1726547202557,2.09198,2287.8,2287.6,0.43711]
[1726547202959,1.6549,2287.8,2287.6,0.43711]
[1726547203162,2.09198,2287.8,2287.6,0.43711]
[1726547203964,1.6549,2287.8,2287.7,0.43709]
[1726547204163,2.09198,2287.8,2287.6,0.4371]
[1726547204364,2.09198,2287.8,2287.6,0.43711]
[1726547204365,0.83198,2287.8,2287.6,0.43711]
[1726547204671,1.26,2287.7,2287.6,0.43711]
[1726547209777,1.26,2287.7,2287.5,0.43712]
[1726547209972,0.8023,2287.6,2287.5,0.43712]
[1726547210176,0.8023,2287.6,2287.3,0.8236]
[1726547210177,0.43714,2287.5,2287.3,0.43716]
[1726547210374,1.26,2287.4,2287.3,0.43716]
[1726547210565,1.6645,2287.5,2287.4,0.43715]
[1726547212775,0.4045,2287.5,2287.4,0.43715]
[1726547213671,0.4045,2287.5,2287.4,0.82995]
[1726547216274,0.8023,2287.6,2287.5,0.43713]
[1726547222773,0.4186,2287.6,2287.5,0.43713]
[1726547224777,0.4186,2287.6,2287.4,4.0089]
[1726547224778,0.7969,2287.7,2287.6,0.43711]
[1726547228484,0.4175,2287.8,2287.7,0.43709]
[1726547229179,0.4175,2287.8,2287.4,4.0089]
[1726547229483,0.4142,2287.7,2287.6,0.4371]
[1726547256910,0.3946,2287.9,2287.6,1.09277]
[1726547257113,0.3946,2287.9,2287.8,3.64487]
[1726547258611,0.3946,2287.9,2287.8,0.43707]
[1726547258815,1.6546,2287.9,2287.5,0.3901]
[1726547259016,1.6546,2287.9,2287.7,0.43709]
[1726547259017,0.4091,2287.8,2287.7,0.43709]
[1726547268014,0.4091,2287.8,2287.7,3.64489]
[1726547270029,0.3946,2287.9,2287.8,0.43707]
[1726547272942,0.801,2287.9,2287.8,0.43707]
[1726547273232,0.801,2287.9,2287.7,0.43708]
[1726547273532,2.061,2287.9,2287.8,0.43707]
[1726547277731,6.4322,2287.9,2287.7,0.43708]
[1726547277933,1.26,2287.8,2287.3,1.1927]
[1726547278138,0.3917,2287.7,2287.3,1.1927]
[1726547278639,0.3925,2287.6,2287.5,0.43713]
[1726547278839,2.052,2287.6,2287.5,0.43713]
[1726547287632,2.052,2287.6,2287.2,3.2078]
[1726547287833,1.69714,2287.5,2287.3,0.43717]
[1726547288033,0.3882,2287.4,2287.3,0.43717]
[1726547291842,0.3882,2287.4,2287.0,3.92281328]
[1726547291843,0.43717,2287.3,2287.0,2.00695328]
[1726547292141,1.26,2287.1,2287.0,0.43721]
[1726547292546,1.6682,2287.1,2287.0,0.43721]
[1726547293147,2.10542,2287.1,2286.7,0.8174]
[1726547293342,0.84542,2287.1,2286.9,0.43724]
[1726547294347,1.26,2287.0,2286.9,0.43724]
[1726547294541,1.6601,2287.0,2286.9,0.43724]
[1726547297349,0.4001,2287.0,2286.9,0.43724]
[1726547307854,0.83733,2287.0,2286.9,0.43724]
[1726547308056,0.4001,2287.0,2286.9,0.43724]
[1726547310249,1.6601,2287.0,2286.9,0.43724]
[1726547310462,2.09733,2287.0,2286.9,0.43724]
[1726547312163,1.6601,2287.0,2286.9,0.43724]
[1726547319564,2.09734,2287.0,2286.9,0.43725]
[1726547330362,2.09734,2287.0,2286.7,0.4217]
[1726547330671,0.3961,2286.9,2286.8,0.43725]
[1726547331063,0.83335,2286.9,2286.8,0.43725]
[1726547332969,0.83336,2286.9,2286.8,0.43727]
[1726547333864,0.3961,2286.9,2286.8,0.43727]
[1726547334170,0.83335,2286.9,2286.8,0.43727]
[1726547336868,1.6561,2286.9,2286.8,0.43727]
[1726547340373,0.4001,2287.0,2286.9,0.43725]
[1726547340676,0.3824,2287.2,2287.1,0.43721]
[1726547341771,1.6424,2287.2,2287.1,0.43721]
[1726547347183,1.6424,2287.2,2286.9,1.2336]
[1726547347386,1.6424,2287.2,2287.1,0.43721]
[1726547349983,2.07959,2287.2,2287.1,0.43721]
[1726547355885,1.6424,2287.2,2287.1,0.43721]
[1726547358078,2.07959,2287.2,2287.1,0.43721]
[1726547359098,1.6424,2287.2,2287.1,0.43721]
[1726547359504,1.6424,2287.2,2286.9,1.2336]
[1726547359505,2.07959,2287.2,2286.9,1.2336]
[1726547359702,2.07959,2287.2,2287.1,0.43721]
[1726547361606,0.43721,2287.1,2287.0,0.43722]
[1726547361903,1.69721,2287.1,2287.0,0.43722]
[1726547362205,1.26,2287.1,2287.0,0.43722]
[1726547367803,0.81961,2287.2,2287.1,0.43721]
[1726547368006,2.07961,2287.2,2287.1,0.43721]
[1726547370603,0.43721,2287.1,2287.0,0.43722]
[1726547370912,1.69721,2287.1,2287.0,0.43722]
[1726547372096,1.26,2287.1,2287.0,0.43722]
[1726547372300,1.69721,2287.1,2287.0,0.43722]
[1726547373504,0.43723,2287.0,2286.9,0.43724]
[1726547373813,0.8123,2287.0,2286.9,0.43724]
[1726547376207,1.24953,2287.0,2286.9,0.43724]
[1726547376717,0.8123,2287.0,2286.9,0.43724]
[1726547387918,2.0723,2287.0,2286.9,0.43724]
[1726547393520,0.8123,2287.0,2286.9,0.43724]
[1726547394420,0.4165,2287.0,2286.9,0.43724]
[1726547396422,1.26,2287.1,2287.0,0.43723]
[1726547405238,1.6424,2287.2,2287.1,0.43721]
[1726547408437,1.6424,2287.2,2286.8,5.72251493]
[1726547408438,5.1916,2287.2,2287.0,0.43723]
[1726547408646,0.3824,2287.2,2286.8,1.14714328]
[1726547408840,1.26,2287.1,2287.0,0.43721]
[1726547420156,0.8196,2287.2,2287.0,0.43721]
[1726547420459,1.26,2287.1,2287.0,0.43721]
[1726547423150,1.69721,2287.1,2287.0,0.43721]
[1726547423352,1.69721,2287.1,2286.8,1.54914328]
[1726547423552,1.69721,2287.1,2286.7,5.32781493]
[1726547423553,0.8078,2287.0,2286.9,0.43723]
[1726547427063,2.50503,2287.0,2286.8,0.43727]
[1726547427263,1.6781,2286.9,2286.8,0.43727]
[1726547431060,1.6781,2286.9,2286.4,0.8159]
[1726547431361,1.26,2286.5,2286.4,0.43734]
[1726547435367,2.4408,2286.6,2286.5,0.43732]